Cogmind - Beta 12 @@@ ROGUE MODE // 2024.01.20 @ 18:22:34 Player: morimori Result: Destroyed by G-34 Mercenary with Small Laser Performance ------------- Evolutions (0) 0 Regions Visited (1) 200 Robots Destroyed (18) 90 Value Destroyed (419) 419 Prototype IDs (4) 80 Alien Tech Used (0) 0 Bonus (0) 0 TOTAL SCORE: 789 Bonus ------- None Cogmind --------- Core Integrity 0/250 Matter 300/300 Energy 160/160 System Corruption 0% Temperature Cool (6) Movement Core (200) Ox3 Location -10/Materials Parts ------- > --- POWER (1) -------- Light Nuclear Core > --- PROPULSION (2) --- (None) > --- UTILITY (2) ------ Small Storage Unit > --- WEAPON (2) ------- (None) > --- INVENTORY (8) ---- Light Nuclear Core Improved Heat Sink Improved Heat Sink Medium Matter Pod (100) Improved Terrain Scanner Grenade Launcher Peak State ------------ > --- POWER ------------ Light Nuclear Core > --- PROPULSION ------- Wheel Compact Wheel > --- UTILITY ---------- Small Storage Unit > --- WEAPON ----------- Assault Rifle Light Assault Rifle > --- INVENTORY -------- Light Nuclear Core Improved Heat Sink Improved Heat Sink Medium Matter Pod Improved Terrain Scanner Grenade Launcher [Rating: 9] Favorites ----------- Power Ion Engine Engine Ion Engine Power Core Light Nuclear Core Propulsion Compact Wheel Wheel Compact Wheel Utility Small Storage Unit Device Seismic Detector Storage Small Storage Unit Weapon Small Laser Energy Gun Small Laser Ballistic Gun Assault Rifle Build | -11 -10 ------- Run | Jun Mat Slots Evolved . | . . Power . | . . Propulsion . | . . Utility . | . . Weapon . | . . Parts Attached 14 | 8 6 Power 5 | 2 3 Engine 4 | 2 2 Core 1 | . 1 Reactor . | . . Propulsion 4 | 2 2 Treads . | . . Leg . | . . Wheel 4 | 2 2 Hover . | . . Flight . | . . Utility 2 | 2 . Device 1 | 1 . Storage 1 | 1 . Processor . | . . Hackware . | . . Protection . | . . Artifact . | . . Weapon 3 | 2 1 Energy Gun 1 | 1 . Energy Cannon . | . . Ballistic Gun 2 | 1 1 Ballistic Cannon . | . . Launcher . | . . Special Weapon . | . . Impact Weapon . | . . Slashing Weapon . | . . Piercing Weapon . | . . Special Melee Weapon . | . . Unidentified Prototypes . | . . Parts Lost 8 | . 8 Power 1 | . 1 Propulsion 3 | . 3 Utility 1 | . 1 Weapon 3 | . 3 Highest Loss Streak 7 | . 7 To Critical Strikes . | . . Average Slot Usage (%) 96 | . 96 Engine 13 | . 13 Wheel 26 | . 26 Device 12 | . 12 Storage 14 | . 14 Energy Gun 12 | . 12 Ballistic Gun 13 | . 13 Naked Turns . | . . Heaviest Build 14 | 14 14 Greatest Support 26 | 26 26 Greatest Overweight (x) 3 | . 3 Average Overweight (x) . | . . Largest Inventory Capacity 8 | 8 8 Average Capacity 7 | 7 8 Most Carried 8 | 7 8 Average Carried 7 | 3 7 Final Capacity 8 | 8 8 Final Carried 7 | 7 6 Class Distribution -------------------- 100% | Mutant Dominant Class ---------------- Mutant | -10/Materials Resources | -11 -10 ----------- Run | Jun Mat Matter Collected 614 | 301 313 Remotely . | . . Salvage Created 600 | 196 404 Parts 38 | 13 25 Haulers Intercepted . | . . Recyclers Shooed 1 | 1 . Parts Field Recycled . | . . Retrieved Matter . | . . Parts Self-Destructed . | . . Prevented . | . . Kills | -11 -10 ------- Run | Jun Mat Combat Hostiles Destroyed 9 | . 9 Guns 9 | . 9 Classes Destroyed 6 | 3 3 Worker 1 | 1 . Tunneler 5 | 5 . Recycler 1 | 1 . Operator 1 | . 1 Watcher 1 | . 1 Grunt 9 | . 9 Best Kill Streak 4 | 2 4 Combat Bots Only 4 | . 4 Max Kills in Single Turn 1 | 1 1 Gunslinging . | . . Exploded . | . . Melee . | . . Uniques/NPCs Destroyed . | . . Combat | -11 -10 -------- Run | Jun Mat Damage Taken 869 | . 869 Core 260 | . 260 Absorbed by Shields . | . . Core Remaining (%) 100 | 100 . Volleys Fired 77 | 23 54 Largest 2 | 2 2 Hottest 60 | 60 60 Shots Fired 143 | 46 97 Gun 143 | 46 97 Cannon . | . . Launcher . | . . Special . | . . Kinetic 80 | 23 57 Thermal 63 | 23 40 Explosive . | . . Electromagnetic . | . . Robot Hit Streak 13 | 13 8 Robot Miss Streak 3 | 1 3 Penetration Max . | . . Secondary Targets . | . . Shots Hit Robots 104 | 34 70 Core Hits 31 | 8 23 Critical Kills . | . . Critical Parts Destroyed . | . . Critical Strikes . | . . Melee Attacks . | . . Impact . | . . Slashing . | . . Piercing . | . . Sneak Attacks . | . . Combat Hostiles . | . . Follow-up Attacks . | . . Damage Inflicted 1185 | 367 818 Guns 1185 | 367 818 Cannons . | . . Explosions . | . . Melee . | . . Ramming . | . . Kinetic 608 | 147 461 Thermal 577 | 220 357 Explosive . | . . Electromagnetic . | . . Impact . | . . Slashing . | . . Piercing . | . . Highest Corruption . | . . Average Corruption . | . . Corruption Purged . | . . Corruption Blocked . | . . Overload Shots . | . . Overflow Damage . | . . Projectiles . | . . Explosions . | . . Melee . | . . Knockbacks . | . . Impact . | . . Kinetic . | . . Secondary . | . . Self-Inflicted Damage . | . . Shots . | . . Rammed . | . . Targets Rammed . | . . Kicked . | . . Crushed . | . . Highest Temperature 90 | . 90 Average Temperature 44 | . 44 Received Heat Transfer 534 | . 534 Siege Activations . | . . Robots Corrupted . | . . Combat Hostiles . | . . Parts Fried . | . . Impact Corruptions . | . . Robots Melted . | . . Combat Hostiles . | . . Parts Melted . | . . Heat Transferred 1300 | 500 800 Parts Sabotaged . | . . Parts Stolen . | . . Parts Stripped . | . . Power Chain Reactions . | . . Missiles Intercepted . | . . Alert | -11 -10 ------- Run | Jun Mat Peak Influence 250 | 35 250 Initial 22 | . 22 Average 105 | 14 128 Maximum Alert Level 1 | . 1 Low Security (%) 77 | 100 72 Level 1 22 | . 27 Level 2 . | . . Level 3 . | . . Level 4 . | . . Level 5 . | . . High Security . | . . Max Security . | . . Squads Dispatched 2 | . 2 Investigation 1 | . 1 Extermination . | . . Reinforcement 1 | . 1 Assault . | . . Garrison . | . . Intercept . | . . Searches Triggered . | . . Construction Impeded . | . . Haulers Reinforced . | . . Active Scanning Responses . | . . Cargo Convoy Interrupts . | . . Stealth | -11 -10 --------- Run | Jun Mat Distress Signals 2 | . 2 Communications Jammed . | . . Distress Signals . | . . Times Spotted 16 | . 16 Peak Tracking Total 5 | . 5 Tactical Retreats 3 | . 3 Traps | -11 -10 ------- Run | Jun Mat Traps Triggered 1 | . 1 Indirectly . | . . Trap Hack Attempts . | . . Triggered . | . . Disarmed . | . . Reprogrammed . | . . Reused . | . . Traps Extracted . | . . Installed . | . . Triggered . | . . Machines | -11 -10 ---------- Run | Jun Mat Machines Disabled . | . . Max in Single Turn . | . . Machines Repaired . | . . Machines Sabotaged . | . . Overloaded Fab Kills . | . . Hacking | -11 -10 --------- Run | Jun Mat Machines Accessed 6 | . 6 Terminals 4 | . 4 Fabricators . | . . Repair Stations . | . . Recycling Units 2 | . 2 Scanalyzers . | . . Garrison Access . | . . Total Hacks 17 | . 17 Successful 9 | . 9 Failed 8 | . 8 Catastrophic . | . . Database Lockouts . | . . Manual 8 | . 8 Terminals 14 | . 14 Fabricators . | . . Repair Stations . | . . Recycling Units 3 | . 3 Scanalyzers . | . . Garrison Access . | . . Terminal Hacks 5 | . 5 Prototype ID Bank 3 | . 3 Zone Layout 2 | . 2 Fabricator Hacks . | . . Repair Station Hacks . | . . Recycling Unit Hacks 3 | . 3 Retrieve Components 3 | . 3 Scanalyzer . | . . Garrison Access Hacks . | . . Unauthorized Hacks 1 | . 1 Terminals 1 | . 1 Botnet 1 | . 1 Fabricators . | . . Repair Stations . | . . Recycling Units . | . . Scanalyzers . | . . Garrison Access . | . . Data Cores Recovered . | . . Used . | . . Hacking Detections 5 | . 5 Full Trace Events . | . . Feedback Events . | . . Feedback Blocked . | . . Robot Schematics Acquired . | . . Robots Built . | . . Authchips . | . . Time . | . . Total Robot Build Rating . | . . Part Schematics Acquired . | . . Parts Built . | . . Authchips . | . . Time . | . . Total Part Build Rating . | . . Parts Repaired . | . . Time . | . . Parts Recycled . | . . Recycled Matter . | . . Retrieved Matter . | . . Retrieved Components 4 | . 4 Parts Scanalyzed . | . . Part Schematics Acquired . | . . Parts Damaged . | . . Bothacking | -11 -10 ------------ Run | Jun Mat Used RIF Installer . | . . Robots Hacked . | . . Non-combat . | . . Combat . | . . Robot Hacks Applied . | . . Relay Couplers Released . | . . Fabnet Peak Effective % . | . . Robots Rewired . | . . Allies Hacked . | . . Hacks Repelled . | . . Allies | -11 -10 -------- Run | Jun Mat Total Allies . | . . Largest Group . | . . Highest-Rated Group . | . . Highest-Rated Ally . | . . Total Orders . | . . Ally Attacks . | . . Total Damage . | . . Kills . | . . Allies Corrupted . | . . Allies Melted . | . . Intel | -11 -10 ------- Run | Jun Mat Robot Analysis Total . | . . Derelict Logs Recovered . | . . Drone Launches . | . . Drone Recoveries . | . . Exploration | -11 -10 ------------- Run | Jun Mat Turns Passed 811 | 166 645 Spaces Moved 538 | 81 457 Core 9 | 2 7 Treads . | . . Legs . | . . Wheels 529 | 79 450 Hover . | . . Flight . | . . Fastest Speed 50 | 50 90 Average Speed 91 | 90 91 Slowest Speed 200 | 100 200 Overloaded Moves . | . . Propulsion Burnouts . | . . Robots Hopped . | . . Cave-ins Triggered . | . . Exploration Rate (%) 36 | 5 67 Regions Visited 1 Branch Regions . Pre-discovered Areas . | . . Known Exits Taken . | . . Unknown Exits Taken 1 | 1 . Scrap Searched . | . . Spaces Dug . | . . Terrain Destroyed . | . . Melee . | . . Projectile . | . . AOE . | . . Terrain Rammed . | . . Walls Destroyed . | . . Machines Disabled . | . . Actions | -11 -10 --------- Run | Jun Mat Total 717 | 123 594 Wait 68 | 6 62 Move 537 | 80 457 Hop . | . . Pick Up 13 | 6 7 Fast Attach 7 | 7 . Attach 3 | . 3 Detach . | . . Swap 4 | 1 3 Drop 8 | . 8 Fire 77 | 23 54 Melee . | . . Ram . | . . Kick . | . . Crush . | . . Escape Stasis . | . . Rewire . | . . Trap . | . . Miscellaneous . | . . Route ------- -11/Junkyard -10/Materials (discovered 3 exits: [*Mat x2] / [*Min]) History --------- Turn | Location | Event 17 | -11/Junkyard | Discovered new exit (range 16) 167 | -11/Junkyard | Entered Materials 238 | -10/Materials | Discovered new exit (range 11) 314 | -10/Materials | Build established: Mutant 448 | -10/Materials | Core integrity fell below 50% 497 | -10/Materials | Discovered new exit (range 16) 629 | -10/Materials | Discovered new exit (range 10) 790 | -10/Materials | Core integrity fell below 20% 812 | -10/Materials | Destroyed by G-34 Mercenary with Small Laser Last Messages --------------- Downloading prototype IDs... Adv. Beam Cannon Imp. Medium Laser >>Prototypes Downloading prototype IDs... Hvy. Ion Engine Imp. Medium Laser 00753_ Seismic Detector destroyed. 00764_ Critical hit (Burn: +37). 00768_ Sml. Laser destroyed. 00774_ Lgt. Ion Engine destroyed. 00778_ Assault Rifle destroyed. 00781_ G-47 Trooper destroyed. 00789_ Com. Wheel destroyed. 00793_ Wheel destroyed. 00793_ R-06 Scavenger collects Imp. Heat Sink. 00796_ R-06 Scavenger collects Aluminum Leg. 00797_ Lgt. Assault Rifle destroyed. 00801_ Acquired 31 matter. 00806_ R-06 Scavenger collects Aluminum Leg. Map ----- +----------------------------------------------------+ | ?????????????????????????# ##### # # | | ?????????????????????????+ # # | | ?????????????????????????# # ## | | ?????????????????????????# """ # ## | | ?????????????????????????# """ # /= | | ?????????????????????????# """ %!# ## | | ?????????????????????????# ! # #? | | ?????????????????????????# # #? | | ????????????????????###### """ # #? | | ????????????????????? """ ##/######## | | ????????????????????????# """ | | ????????????????????????# | | ????????????????????????# / * = | | ????????????????????????# #"Y"#####+########+# | | ????????????????????????# ##"""# # | | ????????????????????????# ###### "T" # | | ????????????????????????# # # """ # """ | | ????????????????????????# # # """ # """ | | ????????????????????????# # # """ # """ | | ????????????????????????# # # # | | ?????????######?????##### # < # = ###### | | ?????????# ####### # [[/# #????? | | ?????????# + =% + [//###########????? | | ?????????# # ##### # [/!#??????????????? | | ?????????# # #???##g####+#######??????????????? | | ?????????# # #????# g @ #???????????????? | | ?????????# "" # #????# """ #???????????????? | | ?????????# T" # ###### """"" #???????????????? | | ?????????# "" # + """"" #???????????????? | | ?????????# ######## """"" #???????????????? | | ?????????######??????# """ #???????????????? | | ?????????????????????# ??#???????????????? | | ?????????????????????###########?????????????????? | | | | | | | | | | | | | | | | | | | | | | | | | | | | | | | | | | | +----------------------------------------------------+ Best States ------------- Heat Dissipation 25 Energy Generation 14 Energy Capacity 250 Matter Stores 300 Matter Capacity 300 Sight Range 16 Terrain Scan Density 10 Evasion (%) 42 Item Schematics ----------------- None Robot Schematics ------------------ None Fabricated ------------ Nothing Alien Tech Used ----------------- None Achievements -------------- None Challenges ------------ None Game ------ Seed FlakFieldPerforator Manual? 0 Play Time 00:08:00 Cumulative 129.7 hours Start 2024.01.20 @ 18:16:03 End 2024.01.20 @ 18:22:34 Sessions 1 Manual Loads 0 Difficulty Rogue Special Mode None Game No. 83 Rogue 83 Adventurer 0 Explorer 0 Win Type - Total 1 Types 1/0/0/0/0/0/0/0/0 Lore% 45 Gallery% 48 Achievement% 41 Wizard Run 0 Options --------- ASCII 0 Keyboard 1 Movement Vi Keybinds 0 Fullscreen 2 Font 18/SmallcapsGlow Map View 76x50 Tactical HUD 1 Map Filters NONE Filters NONE Steam 1 RUN: 65fb82b0-0330-498d-9219-f7ab0a794236